bitfinex/quotes_SOLUSD_20240605
["timestamp","ask_amount","ask_price","bid_price","bid_amount"]
[1717553385231,6.1023,173.85,173.83,2.1284]
[1717553385529,6.1023,173.85,173.82,2.1285]
[1717553385742,6.1023,173.85,173.83,2.1285]
[1717553388015,6.1023,173.85,173.83,2.1284]
[1717553388337,6.1023,173.85,173.82,2.1285]
[1717553388811,6.1023,173.85,173.83,2.1285]
[1717553389263,6.1023,173.85,173.82,2.1285]
[1717553389536,6.1023,173.85,173.8,10.6443]
[1717553389748,6.1023,173.85,173.83,2.1285]
[1717553390942,6.0258,173.85,173.83,2.1285]
[1717553391123,6.0258,173.84,173.81,2.1286]
[1717553391439,6.0258,173.83,173.79,4.2578]
[1717553392037,7.15,173.82,173.81,2.1287]
[1717553395641,7.15,173.82,173.77,124.2583]
[1717553395853,7.15,173.8,173.78,2.129]
[1717553396643,7.15,173.79,173.77,2.1292]
[1717553396852,7.15,173.78,173.76,2.1293]
[1717553397154,7.15,173.77,173.76,2.1293]
[1717553403138,7.15,173.77,173.75,2.1294]
[1717553404052,7.15,173.77,173.76,2.1293]
[1717553404365,7.15,173.77,173.75,2.1294]
[1717553404879,6.52,173.78,173.71,10.6497]
[1717553405064,6.52,173.78,173.73,2.1297]
[1717553405065,7.15,173.75,173.73,2.1297]
[1717553405363,7.15,173.75,173.72,2.1298]
[1717553405557,7.15,173.74,173.71,2.1299]
[1717553405860,7.15,173.74,173.72,2.1298]
[1717553407937,2.1295,173.75,173.71,2.1299]
[1717553408138,7.15,173.73,173.69,124.2602]
[1717553408437,7.15,173.73,173.7,2.13]
[1717553408641,7.15,173.72,173.71,2.1299]
[1717553409046,7.15,173.72,173.7,2.13]
[1717553409252,7.15,173.72,173.7,2.0998]
[1717553409660,7.15,173.72,173.71,2.1299]
[1717553410659,2.1295,173.75,173.7,2.13]
[1717553410660,7.15,173.73,173.7,2.13]
[1717553411645,7.15,173.73,173.71,2.1299]
[1717553411969,7.15,173.73,173.7,2.13]
[1717553412336,7.15,173.73,173.71,2.1299]
[1717553413262,7.15,173.73,173.7,2.13]
[1717553413761,7.15,173.73,173.71,2.1299]
[1717553414567,7.15,173.73,173.7,2.13]
[1717553414937,9.2797,173.73,173.69,2.1302]
[1717553415157,7.15,173.73,173.67,6.3913]
[1717553415359,15.9184,173.73,173.69,2.1302]
[1717553415767,7.15,173.72,173.69,2.1302]
[1717553416066,7.15,173.71,173.69,2.1301]
[1717553417064,7.15,173.71,173.7,2.1301]
[1717553417261,7.15,173.71,173.69,2.1301]
[1717553419663,7.15,173.71,173.68,2.1303]
[1717553420469,7.15,173.71,173.69,2.1302]
[1717553420668,7.15,173.71,173.66,2.1305]
[1717553420842,7.15,173.69,173.66,2.1305]
[1717553421440,7.15,173.69,173.67,2.1304]
[1717553422276,13.6925,173.68,173.6,8.525]
[1717553422440,7.15,173.66,173.63,2.1309]
[1717553423568,7.15,173.66,173.64,2.1308]
[1717553424157,7.15,173.66,173.63,2.1309]
[1717553425468,7.15,173.66,173.64,2.1308]
[1717553425774,7.15,173.67,173.63,2.1308]
[1717553426279,8.6729,173.68,173.64,2.1307]
[1717553426567,2.1302,173.69,173.63,22.0666]
[1717553426741,20.0,173.69,173.65,2.1306]
[1717553427474,22.1302,173.69,173.65,2.1306]
[1717553428850,2.1303,173.68,173.64,2.1307]
[1717553429063,22.1302,173.69,173.65,2.1307]
[1717553429276,9.2802,173.69,173.65,2.1307]
[1717553429567,2.1302,173.69,173.65,2.1307]
[1717553429753,27.15,173.7,173.65,2.1307]
[1717553429959,9.2803,173.69,173.65,2.1307]
[1717553431668,2.1303,173.69,173.65,2.1307]
[1717553431866,9.2803,173.69,173.65,2.1307]
[1717553433474,2.1305,173.67,173.61,10.6559]
[1717553433771,2.1305,173.67,173.63,2.1308]
[1717553434350,9.2805,173.67,173.63,2.1308]
[1717553434648,9.2805,173.67,173.61,17.8059]
[1717553434649,9.2805,173.67,173.64,2.1308]
[1717553434844,9.2805,173.67,173.63,2.1309]
[1717553435047,9.2805,173.67,173.61,26.3306]
[1717553435456,7.15,173.67,173.64,2.1308]
[1717553438480,13.2469,173.67,173.64,2.1308]
[1717553438772,7.15,173.66,173.6,4.2625]
[1717553438959,7.15,173.66,173.62,6.3932]
[1717553439145,20.0,173.7,173.66,2.1305]
[1717553439346,20.0,173.7,173.64,4.2616]
[1717553439347,2.1302,173.69,173.65,2.1306]
[1717553439551,2.1302,173.69,173.66,2.1305]
[1717553439764,9.2801,173.7,173.66,2.1305]
[1717553439970,2.1302,173.69,173.66,2.1305]
[1717553440174,8.3716,173.7,173.66,2.1305]
[1717553440375,2.1302,173.69,173.65,2.1306]
[1717553440752,8.6319,173.69,173.65,2.1306]
[1717553441156,15.7819,173.69,173.65,2.1306]
[1717553441365,2.1304,173.68,173.65,2.1306]
[1717553441580,15.7819,173.69,173.65,2.1306]
[1717553442564,2.1305,173.67,173.63,2.1308]
[1717553442765,7.15,173.68,173.64,2.1308]
[1717553442977,9.2804,173.68,173.64,2.1308]
[1717553443186,9.2804,173.68,173.65,2.1307]
[1717553443362,2.1304,173.68,173.65,2.1307]
[1717553443562,9.2804,173.68,173.65,2.1307]
[1717553443996,15.8583,173.68,173.65,2.1307]
[1717553444196,13.7279,173.68,173.65,2.1307]
[1717553444494,15.8582,173.68,173.65,2.1307]
[1717553444962,13.7279,173.68,173.65,2.1307]
[1717553445164,2.1301,173.7,173.64,4.2615]
[1717553445383,7.15,173.69,173.66,2.1305]
[1717553445662,7.15,173.69,173.61,120.0]
[1717553445663,7.15,173.67,173.59,120.0]
[1717553445898,6.0301,173.69,173.63,2.1308]
[1717553445899,20.0,173.68,173.63,2.1308]
[1717553446091,7.15,173.67,173.61,4.2622]
[1717553446298,20.0,173.68,173.62,4.2621]
[1717553446460,7.15,173.68,173.62,4.2621]
[1717553446866,7.15,173.68,173.64,2.1307]
[1717553447078,13.3469,173.68,173.64,2.1307]
[1717553447596,15.4772,173.68,173.64,2.1307]
[1717553448186,15.4772,173.68,173.64,2.1308]
[1717553448770,2.1304,173.67,173.63,2.1309]
[1717553449587,15.4773,173.68,173.63,2.1309]
[1717553452488,18.13014243,173.73,173.63,7.15]
[1717553452664,13.87064243,173.73,173.66,4.261]
[1717553452871,6.0453,173.73,173.68,7.15]
[1717553453095,8.175,173.73,173.69,2.1302]
[1717553453997,15.4386,173.72,173.68,2.1303]
[1717553454200,8.5094,173.71,173.67,2.1304]
[1717553454373,15.6594,173.71,173.67,2.1304]
[1717553454559,6.3794,173.7,173.67,2.1304]
[1717553455375,6.3794,173.7,173.68,2.1303]
[1717553455776,13.5294,173.7,173.66,2.1304]
[1717553455980,6.5442,173.69,173.66,2.1304]
[1717553456203,13.6942,173.69,173.66,2.1304]
[1717553457899,6.3805,173.68,173.66,2.1304]
[1717553458205,15.6608,173.68,173.64,2.1307]
[1717553458376,7.15,173.67,173.64,2.1307]
[1717553459189,7.15,173.67,173.65,2.1307]
[1717553459392,6.3805,173.68,173.65,2.1307]
[1717553459393,13.5305,173.68,173.65,2.1307]
[1717553459687,6.3805,173.68,173.66,2.1305]
[1717553459890,15.5467,173.7,173.66,2.1305]
[1717553460093,20.0,173.69,173.66,2.1305]
[1717553461710,20.0,173.69,173.65,2.1306]
[1717553461994,22.1302,173.69,173.65,2.1306]
[1717553463193,2.1303,173.68,173.61,12.7869]
[1717553463402,8.4353,173.68,173.63,2.1309]
[1717553463576,15.5853,173.68,173.63,2.1309]
[1717553463996,2.1307,173.65,173.58,12.7893]
[1717553464194,21.4364,173.68,173.62,2.131]
[1717553464374,29.2805,173.67,173.62,2.131]
[1717553464579,35.7238,173.67,173.62,2.131]
[1717553464775,26.4433,173.67,173.63,2.1309]
[1717553464994,33.5933,173.67,173.63,2.1309]
[1717553465206,35.7237,173.67,173.63,2.1309]
[1717553465521,2.1309,173.64,173.59,2.1314]
[1717553465675,2.1306,173.66,173.61,2.1311]
[1717553465874,8.6664,173.66,173.61,2.1311]
[1717553466308,2.1307,173.65,173.61,2.1311]
[1717553466480,8.71,173.65,173.6,2.1313]
[1717553467077,6.5793,173.65,173.61,2.1311]
[1717553467486,13.7293,173.65,173.61,2.1311]
[1717553467677,13.7293,173.65,173.6,2.1312]
[1717553467885,13.7293,173.65,173.61,2.1312]
[1717553468092,6.5793,173.65,173.61,2.1312]
[1717553468780,6.0835,173.65,173.61,2.1312]
[1717553469596,8.2142,173.65,173.6,2.1312]
[1717553469799,8.2142,173.65,173.61,2.1312]
[1717553470011,6.0835,173.65,173.61,2.1312]
[1717553470506,6.0835,173.65,173.61,2.1311]
[1717553470878,25.7864,173.7,173.61,7.15]
[1717553471083,23.6562,173.7,173.65,2.1306]
[1717553471297,6.0835,173.7,173.66,2.1305]
[1717553471601,15.3634,173.72,173.67,2.1304]
[1717553471824,6.0835,173.72,173.68,2.1302]
[1717553472195,24.7222,173.74,173.69,2.1301]
[1717553472518,8.3835,173.73,173.68,2.1302]
[1717553472722,15.5335,173.73,173.68,2.1302]
[1717553472898,2.1298,173.72,173.68,2.1302]
[1717553473100,2.1298,173.72,173.67,2.1304]
[1717553473309,9.2799,173.71,173.67,2.1304]
[1717553473811,9.2799,173.71,173.65,7.15]
[1717553473812,7.15,173.7,173.66,2.1305]
[1717553474019,7.15,173.69,173.65,2.1306]
[1717553474198,7.15,173.69,173.66,2.1305]
[1717553474614,2.13,173.71,173.66,2.1305]
[1717553474615,7.15,173.7,173.66,2.1305]
[1717553475005,7.15,173.69,173.63,4.2617]
[1717553475219,7.15,173.68,173.64,2.1308]
[1717553476208,7.15,173.68,173.65,2.1307]
[1717553476900,6.1906,173.69,173.66,2.1305]
[1717553477109,7.15,173.7,173.66,2.1305]
[1717553477404,7.15,173.69,173.66,2.1305]
[1717553477789,7.15,173.68,173.64,2.1307]
[1717553478718,7.15,173.68,173.61,19.1805]
[1717553478927,7.15,173.67,173.65,2.1307]
[1717553479399,7.15,173.69,173.66,2.1306]
[1717553479596,7.15,173.69,173.63,4.2618]
[1717553479597,7.15,173.68,173.65,2.1307]
[1717553479993,7.15,173.68,173.62,15.6742]
[1717553480316,7.15,173.67,173.63,2.1309]
[1717553480615,9.2803,173.68,173.64,2.1308]
[1717553480797,9.2803,173.68,173.63,2.1309]
[1717553480996,9.2803,173.68,173.64,2.1308]
[1717553480997,7.15,173.67,173.64,2.1308]
[1717553481908,13.7346,173.67,173.61,4.2623]
[1717553482111,6.5846,173.67,173.64,2.1307]
[1717553482310,6.5846,173.66,173.63,2.1309]
[1717553482517,13.7346,173.66,173.63,2.1309]
[1717553482716,13.7346,173.66,173.64,2.1308]
[1717553482908,6.5342,173.68,173.65,2.1306]
[1717553483218,7.15,173.69,173.66,2.1305]
[1717553483426,7.15,173.69,173.63,11.4118]
[1717553483427,29.9721,173.68,173.67,2.1304]
[1717553483601,6.5342,173.67,173.65,2.1307]
[1717553483804,6.5342,173.67,173.64,2.1307]
[1717553484702,13.6842,173.67,173.65,2.1307]
[1717553484900,13.6842,173.67,173.64,2.1307]
[1717553485103,13.6842,173.67,173.65,2.1307]
[1717553485402,13.6842,173.67,173.65,2.1306]
[1717553485617,13.6842,173.67,173.64,2.1307]
[1717553485924,13.6842,173.67,173.65,2.1307]
[1717553486216,13.6842,173.67,173.62,10.6553]
[1717553487005,13.6842,173.67,173.61,6.3934]
[1717553487305,7.15,173.66,173.61,10.6557]
[1717553487519,7.15,173.66,173.64,2.1308]
[1717553487715,6.3247,173.65,173.59,4.2628]
[1717553488031,7.15,173.64,173.61,2.1311]
[1717553488216,6.3247,173.65,173.62,2.131]
[1717553488407,13.4747,173.65,173.62,2.131]
[1717553488917,13.4747,173.65,173.61,2.1311]
[1717553491228,6.3247,173.65,173.61,2.1311]
[1717553491938,6.0941,173.7,173.63,7.15]
[1717553492233,25.1124,173.71,173.66,2.1305]
[1717553492428,31.2065,173.71,173.66,2.1305]
[1717553493004,24.0565,173.71,173.66,2.1305]
[1717553493214,21.9265,173.71,173.64,7.15]
[1717553493420,7.15,173.7,173.66,2.1305]
[1717553493911,6.2271,173.7,173.65,2.1306]
[1717553494232,6.2271,173.7,173.66,2.1305]
[1717553495332,8.3572,173.7,173.65,2.1306]
[1717553495531,2.1301,173.7,173.65,2.1306]
[1717553495735,6.5344,173.74,173.64,120.0]
[1717553495916,4.54752851,173.77,173.69,7.15]
[1717553496233,6.077,173.78,173.69,7.15]
[1717553496234,7.15,173.76,173.69,7.15]
[1717553496438,9.2795,173.75,173.7,2.13]
[1717553496816,13.4245,173.74,173.69,2.1301]
[1717553497210,13.4245,173.74,173.7,2.13]
[1717553498105,7.15,173.74,173.68,127.15]
[1717553498332,7.15,173.75,173.7,2.1299]
[1717553498729,9.2795,173.75,173.7,2.1299]
[1717553498928,15.9039,173.75,173.7,2.1299]
[1717553499110,13.7744,173.75,173.7,2.1299]
[1717553499633,6.6244,173.75,173.7,2.1299]
[1717553499835,7.15,173.74,173.7,2.1299]
[1717553500041,13.2232,173.74,173.69,2.1301]
[1717553500239,13.2232,173.74,173.7,2.13]
[1717553500732,15.3528,173.74,173.69,2.1301]
[1717553501032,7.15,173.73,173.69,2.1302]
[1717553501334,9.2797,173.73,173.68,2.1302]
[1717553501524,7.15,173.72,173.68,2.1302]
[1717553502412,7.15,173.72,173.69,2.1302]
[1717553503643,7.15,173.72,173.68,2.1303]
[1717553504333,7.15,173.72,173.69,2.1302]
[1717553505940,7.15,173.72,173.7,2.1301]
[1717553506158,7.15,173.72,173.69,2.1301]
[1717553506439,6.1848,173.72,173.69,2.1301]
[1717553506618,13.3348,173.72,173.68,2.1303]
[1717553506931,13.3348,173.72,173.69,2.1302]
[1717553507134,13.3348,173.72,173.69,2.1301]
[1717553508522,7.15,173.71,173.69,2.1301]
[1717553508724,6.1848,173.72,173.69,2.1301]
[1717553508929,13.3348,173.72,173.69,2.1301]
[1717553509135,7.15,173.72,173.69,2.1301]
[1717553512342,13.1945,173.72,173.69,2.1301]
[1717553512844,7.15,173.71,173.69,2.1301]
[1717553514824,7.15,173.72,173.7,2.1301]
[1717553515138,24.383,173.75,173.7,2.1301]
[1717553515343,7.15,173.73,173.7,2.1301]
[1717553516247,7.15,173.73,173.69,2.1301]
[1717553516426,9.2797,173.73,173.68,2.1302]
[1717553516627,6.6663,173.72,173.68,2.1302]
[1717553517017,7.15,173.72,173.68,2.1302]
[1717553518334,2.1296,173.74,173.65,26.326]
[1717553518335,7.15,173.71,173.67,2.1304]
[1717553518521,7.15,173.71,173.66,2.1305]
[1717553518718,6.0497,173.74,173.66,8.5222]
[1717553518922,5.14878082,173.82,173.75,2.1294]
[1717553519162,7.15,173.76,173.7,4.2601]
[1717553519325,27.15,173.75,173.7,2.13]
[1717553519526,29.2795,173.75,173.7,2.13]
[1717553520528,29.2795,173.75,173.69,2.1301]
[1717553520730,7.15,173.74,173.69,2.1301]
[1717553521239,7.15,173.74,173.7,2.1301]
[1717553521753,9.2796,173.74,173.69,2.1302]
[1717553522049,8.3703,173.74,173.69,2.1302]
[1717553522453,7.15,173.73,173.69,2.1302]
[1717553523229,2.1291,173.78,173.72,2.1297]
[1717553523431,7.15,173.77,173.7,11.41]
[1717553523632,7.15,173.77,173.73,2.1296]
[1717553523831,6.4707,173.8,173.73,2.1296]
[1717553524051,7.15,173.76,173.73,2.1296]
[1717553524230,7.15,173.76,173.72,2.1298]
[1717553524748,7.15,173.75,173.72,2.1298]
[1717553526043,6.1483,173.77,173.66,8.522]
[1717553526252,7.15,173.74,173.71,2.1299]
[1717553526752,7.15,173.74,173.68,11.4106]
[1717553526955,7.15,173.74,173.71,2.1299]
[1717553529960,7.15,173.74,173.7,2.13]
[1717553532663,7.15,173.73,173.7,2.13]
[1717553534542,7.15,173.73,173.69,2.1301]
[1717553534860,7.15,173.73,173.68,2.1302]
[1717553534861,7.15,173.7,173.68,2.1302]
[1717553535062,7.15,173.7,173.66,10.6528]
[1717553535265,7.15,173.7,173.66,4.2611]
[1717553535448,7.15,173.7,173.68,2.1303]
[1717553535649,7.15,173.7,173.66,4.2611]
[1717553535949,7.15,173.7,173.68,2.1303]
[1717553536363,2.1298,173.73,173.68,2.1303]
[1717553536364,7.15,173.71,173.68,2.1303]
[1717553537041,7.15,173.71,173.67,2.1304]
[1717553537459,16.8225,173.75,173.67,2.1304]
[1717553537460,7.15,173.7,173.67,2.1304]
[1717553539265,2.1298,173.73,173.67,2.1304]
[1717553539454,7.15,173.7,173.67,2.1304]
[1717553539662,7.15,173.7,173.68,2.1303]
[1717553541251,7.15,173.71,173.68,2.1303]
[1717553541569,7.15,173.72,173.68,2.1303]
[1717553541769,7.15,173.71,173.68,2.1303]
[1717553543066,7.15,173.71,173.67,2.1304]
[1717553543370,7.15,173.71,173.65,10.6535]
[1717553543559,7.15,173.71,173.67,2.1304]
[1717553543752,7.15,173.7,173.67,2.1304]
[1717553544265,7.15,173.7,173.68,2.1303]
[1717553545177,7.15,173.7,173.65,10.6535]
[1717553545471,7.15,173.7,173.67,2.1303]
[1717553545872,7.15,173.7,173.68,2.1303]
[1717553546458,7.15,173.7,173.67,2.1304]
[1717553546762,7.15,173.71,173.67,2.1304]
[1717553546961,7.15,173.71,173.68,2.1303]
[1717553548776,7.15,173.71,173.67,2.1304]
[1717553549073,7.15,173.7,173.67,2.1304]
[1717553549269,7.15,173.69,173.66,2.1305]
[1717553549478,6.4501,173.71,173.67,2.1304]
[1717553549663,7.15,173.69,173.67,2.1304]
[1717553550566,6.4501,173.71,173.65,10.6535]
[1717553550768,7.15,173.7,173.65,10.6535]
[1717553551083,7.15,173.7,173.67,2.1304]
[1717553551874,2.1298,173.73,173.68,2.1303]
[1717553552058,20.0,173.74,173.66,10.6528]
[1717553552257,7.15,173.71,173.68,2.1302]
[1717553553481,7.15,173.71,173.67,2.1304]
[1717553553687,7.15,173.71,173.66,2.1305]
[1717553553688,7.15,173.69,173.66,2.1305]
[1717553553988,7.15,173.69,173.67,2.1304]
[1717553555759,7.15,173.69,173.61,8.5244]
[1717553555760,6.6653,173.69,173.61,8.5244]
[1717553556082,7.15,173.66,173.64,2.1307]
[1717553556979,7.15,173.66,173.65,2.1307]
[1717553559479,7.15,173.66,173.64,2.1307]
[1717553559682,7.15,173.67,173.64,2.1307]
[1717553560977,7.15,173.67,173.65,2.1307]
[1717553561180,7.15,173.66,173.64,2.1307]
[1717553563206,7.15,173.66,173.59,7.15]
[1717553563370,7.15,173.65,173.59,4.2628]
[1717553563693,7.15,173.65,173.62,2.131]
[1717553564672,7.15,173.64,173.62,2.131]
[1717553566277,7.15,173.63,173.59,380.3]
[1717553566496,7.15,173.61,173.59,380.3]
[1717553566672,18.9588,173.68,173.59,380.3]
[1717553566874,7.15,173.63,173.59,382.4313]
[1717553567606,7.15,173.62,173.59,382.4313]
[1717553568174,7.15,173.62,173.59,380.3]
[1717553568807,9.2813,173.6,173.59,380.3]
[1717553568991,15.398,173.6,173.59,380.3]
[1717553569175,15.398,173.6,173.59,333.2460222]
[1717553569378,13.2667,173.6,173.59,333.2460222]
[1717553569902,13.2667,173.6,173.54,2.132]
[1717553570207,7.15,173.58,173.54,2.132]
[1717553570706,7.15,173.57,173.54,2.132]
[1717553571192,6.1167,173.6,173.54,2.132]
[1717553571602,7.15,173.58,173.54,2.132]
[1717553572998,6.217,173.57,173.54,2.132]
[1717553573199,7.15,173.58,173.54,2.132]
[1717553573407,6.217,173.61,173.55,2.1319]
[1717553573586,7.15,173.58,173.55,2.1319]
[1717553573903,7.15,173.6,173.53,7.15]
[1717553574099,7.15,173.6,173.55,2.1318]
[1717553574399,6.217,173.61,173.55,2.1318]
[1717553574400,7.15,173.59,173.55,2.1318]
[1717553574606,6.3122,173.57,173.5,10.6625]
[1717553574796,30.7313,173.61,173.54,2.132]
[1717553574982,0.17,173.6,173.54,2.132]
[1717553575505,37.0435,173.61,173.55,2.1319]
[1717553575506,7.15,173.57,173.55,2.1319]
[1717553577808,7.15,173.57,173.55,2.1318]
[1717553578128,7.15,173.58,173.55,2.1318]
[1717553578680,7.15,173.58,173.56,2.1318]
[1717553578985,7.15,173.57,173.51,4.2648]
[1717553579210,6.1214,173.58,173.54,2.132]
[1717553579211,7.15,173.55,173.54,2.132]
[1717553579899,7.15,173.55,173.53,2.1321]
[1717553580099,7.15,173.54,173.53,2.1321]
[1717553581197,6.1639,173.57,173.54,2.1319]
[1717553581398,15.0559,173.58,173.49,7.87]
[1717553581399,7.15,173.55,173.49,0.72]
[1717553581583,7.15,173.54,173.49,0.72]
[1717553581783,7.15,173.54,173.53,2.1321]
[1717553582891,7.15,173.54,173.49,0.72]
[1717553582892,13.6547,173.54,173.49,0.72]
[1717553583216,13.6547,173.54,173.36,7.15]
[1717553583217,2.1333,173.44,173.36,7.15]
[1717553583380,7.15,173.41,173.38,2.1339]
[1717553583580,7.15,173.41,173.35,4.2685]
[1717553583581,7.15,173.41,173.35,7.15]
[1717553583889,7.15,173.39,173.34,2.1345]
[1717553584202,2.1336,173.41,173.34,2.1345]
[1717553584433,0.17,173.42,173.34,2.1345]
[1717553584434,7.15,173.39,173.34,2.1345]
[1717553584744,2.1332,173.45,173.34,120.0]
[1717553584906,12.07381616,173.48,173.32,0.8184313]
[1717553584907,21.8047,173.37,173.32,0.8184313]
[1717553585106,21.8047,173.37,173.23,127.968432]
[1717553585107,8.11877172,173.36,173.23,7.6331318]
[1717553585338,4.2697,173.32,173.16,120.0]
[1717553585654,6.4036,173.34,173.18,2.1364]
[1717553585655,2.1353,173.27,173.18,2.1364]
[1717553585828,0.17,173.28,173.17,2.1366]
[1717553586007,0.17,173.28,173.15,2.1367]
[1717553586008,65.17,173.28,173.15,2.1367]
[1717553586208,21.61,173.26,173.15,2.1367]
[1717553586440,2.1359,173.23,173.15,2.1367]
[1717553586738,20.17,173.25,173.14,2.9553313]
[1717553586739,2.136,173.22,173.14,2.9553313]
[1717553587121,2.3059,173.23,173.14,2.9553313]
[1717553587318,0.17,173.22,173.14,0.8184313]
[1717553587536,2.1362,173.21,173.14,0.8184313]
[1717553588213,0.34,173.22,173.14,0.8184313]
[1717553588214,2.1363,173.2,173.14,0.8184313]
[1717553588414,8.825,173.19,173.14,0.8184313]
[1717553588637,8.485,173.19,173.14,0.8184313]
[1717553588937,20.17,173.18,173.14,0.8184313]
[1717553590146,6.5631,173.16,173.14,0.8184313]
[1717553590327,6.5631,173.15,173.14,0.8184313]
[1717553590510,28.6999,173.15,173.14,0.8184313]
[1717553591712,28.6999,173.15,173.07,2.1378]
[1717553592332,28.6999,173.15,173.02,4.2768]
[1717553592333,28.7,173.15,173.02,124.2768]
[1717553592530,2.137,173.14,173.06,2.1378]
[1717553592730,2.137,173.14,173.02,124.2768]
[1717553592731,2.1371,173.14,173.02,124.2768]
[1717553592924,2.1371,173.13,173.02,124.2768]
[1717553593359,2.1371,173.13,173.06,2.1379]
[1717553593524,2.1371,173.13,173.05,2.138]
[1717553593718,2.1371,173.13,173.06,2.1379]
[1717553593916,2.1371,173.13,173.02,4.2768]
[1717553593917,11.88693333,173.21,173.08,120.0]
[1717553594117,23.136289,173.21,173.17,2.1366]
[1717553594324,23.136289,173.21,173.15,120.0]
[1717553594622,2.1353,173.28,173.2,2.1361]
[1717553594829,6.4116,173.3,173.21,2.1361]
[1717553595032,6.1176,173.31,173.22,2.1359]
[1717553595246,2.1352,173.29,173.21,2.1361]
[1717553595447,6.1176,173.31,173.22,2.1359]
[1717553595628,2.1351,173.29,173.22,2.1359]
[1717553595953,2.1352,173.28,173.21,2.1361]
[1717553596252,2.1352,173.29,173.21,2.1361]
[1717553596425,6.1176,173.31,173.13,12.822]
[1717553596426,27.7276,173.31,173.13,12.822]
[1717553596625,2.1359,173.23,173.12,120.34]
[1717553596832,4.2708,173.27,173.16,2.1366]
[1717553597127,2.1358,173.24,173.16,2.1366]
[1717553597537,2.1358,173.24,173.12,124.4444]
[1717553597538,22.74319514,173.27,173.14,2.1369]
[1717553597849,2.1361,173.21,173.14,2.1369]
[1717553598052,3.66112509,173.2,173.13,2.137]
[1717553598351,5.79732509,173.2,173.13,2.137]
[1717553598553,5.79732509,173.2,173.12,2.1372]
[1717553598845,3.66112509,173.2,173.05,128.5519]
[1717553599142,3.66112509,173.2,173.09,2.1375]
[1717553599143,2.1367,173.16,173.09,2.1375]
[1717553599348,2.1368,173.15,173.04,4.2764]
[1717553599526,2.1367,173.16,173.08,2.1377]
[1717553599948,2.1367,173.16,173.04,4.2764]
[1717553599949,2.1367,173.16,173.09,2.1376]
[1717553600743,2.3066,173.17,173.09,2.1376]
[1717553601252,2.1367,173.16,173.09,2.1376]
[1717553601625,2.1367,173.16,173.05,4.276]
[1717553601626,2.1372,173.13,173.06,2.1379]
[1717553602156,2.307,173.14,173.07,2.1378]
[1717553602445,2.137,173.14,173.07,2.1378]
[1717553602645,2.3069,173.15,173.04,4.2763]
[1717553602954,2.137,173.14,173.07,2.1377]
[1717553603743,2.3069,173.15,173.04,120.0]
[1717553603950,22.1367,173.16,173.05,4.2761]
[1717553604134,22.1367,173.16,173.07,120.0]
[1717553604135,20.0,173.16,173.07,120.0]
[1717553604461,20.0,173.16,173.09,2.1375]
[1717553604747,20.0,173.16,173.1,2.1374]
[1717553605545,60.2221,173.24,173.14,2.1369]
[1717553605846,2.1362,173.2,173.14,2.1369]